fUST/lending_fUST_20250325
["ID","MTS","AMOUNT","RATE_DAILY","PERIOD"]
[356629543,1742853043068,-500.0,0.00014246,2]
[356629544,1742853043077,-381.18351954,0.00014246,2]
[356629545,1742853043086,-500.0,0.00014246,2]
[356629546,1742853043096,-500.0,0.00014246,2]
[356629547,1742853043105,-500.0,0.00014246,2]
[356629548,1742853043114,-544.12,0.00014246,2]
[356629549,1742853043123,-500.0,0.00014246,2]
[356629550,1742853043132,-500.0,0.00014246,2]
[356629551,1742853043141,-500.0,0.00014246,2]
[356629552,1742853043150,-540.74,0.00014246,2]
[356629553,1742853043159,-521.02,0.00014246,2]
[356629555,1742853043168,-500.0,0.00014246,2]
[356629557,1742853043178,-500.0,0.00014246,2]
[356629558,1742853043187,-1129.66,0.00014246,2]
[356629559,1742853043196,-500.0,0.00014246,2]
[356629560,1742853043205,-500.0,0.00014246,2]
[356629561,1742853043214,-500.0,0.00014246,2]
[356629562,1742853043223,-539.89,0.00014246,2]
[356629563,1742853043233,-591.76137615,0.00014246,2]
[356629564,1742853043337,-500.0,0.00014246,2]
[356629565,1742853043347,-500.0,0.00014246,2]
[356629566,1742853043356,-511.2849686,0.00014246,2]
[356629567,1742853043366,-507.98,0.00014246,2]
[356629568,1742853043376,-512.04146172,0.00014246,2]
[356629569,1742853043385,-989.28,0.00014246,2]
[356629570,1742853043394,-500.0,0.00014246,2]
[356629571,1742853043403,-500.0,0.00014246,2]
[356629572,1742853043412,-500.0,0.00014246,2]
[356629573,1742853043421,-500.0,0.00014246,2]
[356629574,1742853043430,-500.0,0.00014246,2]
[356629575,1742853043439,-500.0,0.00014246,2]
[356629576,1742853043449,-500.0,0.00014246,2]
[356629577,1742853043458,-515.8653921,0.00014246,2]
[356629578,1742853043467,-500.0,0.00014246,2]
[356629579,1742853043476,-500.0,0.00014246,2]
[356629580,1742853043485,-513.15822854,0.00014246,2]
[356629581,1742853043494,-500.0,0.00014246,2]
[356629582,1742853043503,-411.66621619,0.00014246,2]
[356629583,1742853043513,-578.79999616,0.00014246,2]
[356629584,1742853043522,-500.0,0.00014246,2]
[356629585,1742853043531,-500.0,0.00014246,2]
[356629586,1742853043541,-553.31986373,0.00014246,2]
[356629587,1742853043550,-704.59,0.00014246,2]
[356629588,1742853043559,-500.0,0.00014246,2]
[356629589,1742853043569,-500.0,0.00014246,2]
[356629590,1742853043578,-1037.01,0.00014246,2]
[356629591,1742853043587,-500.0,0.00014246,2]
[356629592,1742853043596,-500.0,0.00014246,2]
[356629593,1742853043606,-551.39,0.00014246,2]
[356629594,1742853043615,-500.0,0.00014246,2]
[356629595,1742853043625,-500.0,0.00014246,2]
[356629596,1742853043634,-526.63,0.00014246,2]
[356629597,1742853043644,-500.0,0.00014246,2]
[356629598,1742853043653,-500.0,0.00014246,2]
[356629599,1742853043663,-500.0,0.00014246,2]
[356629600,1742853043672,-500.0,0.00014246,2]
[356629601,1742853043682,-564.14,0.00014246,2]
[356629602,1742853043692,-500.0,0.00014246,2]
[356629604,1742853043701,-3259.08,0.00014246,2]
[356629605,1742853043711,-500.0,0.00014246,2]
[356629606,1742853043720,-500.0,0.00014246,2]
[356629607,1742853043730,-500.0,0.00014246,2]
[356629608,1742853043739,-500.0,0.00014246,2]
[356629609,1742853043749,-372.2,0.00014246,2]
[356629610,1742853043758,-500.0,0.00014246,2]
[356629611,1742853043767,-500.0,0.00014246,2]
[356629612,1742853043777,-500.0,0.00014246,2]
[356629613,1742853043786,-500.0,0.00014246,2]
[356629614,1742853043796,-1266.65,0.00014246,2]
[356629615,1742853043805,-342.85381006,0.00014246,2]
[356629616,1742853043814,-500.0,0.00014246,2]
[356629617,1742853043824,-718.32,0.00014246,2]
[356629618,1742853043833,-500.0,0.00014246,2]
[356629619,1742853043842,-500.0,0.00014246,2]
[356629620,1742853043852,-500.0,0.00014246,2]
[356629621,1742853043862,-500.0,0.00014246,2]
[356629622,1742853043871,-500.0,0.00014246,2]
[356629623,1742853043881,-1180.05,0.00014246,2]
[356629624,1742853043890,-500.0,0.00014246,2]
[356629625,1742853043899,-500.0,0.00014246,2]
[356629626,1742853043909,-500.0,0.00014246,2]
[356629627,1742853043919,-500.0,0.00014246,2]
[356629628,1742853043929,-500.0,0.00014246,2]
[356629629,1742853043938,-500.0,0.00014246,2]
[356629630,1742853043948,-500.0,0.00014246,2]
[356629631,1742853043958,-500.0,0.00014246,2]
[356629632,1742853043968,-500.0,0.00014246,2]
[356629633,1742853043979,-500.0,0.00014246,2]
[356629634,1742853043989,-500.0,0.00014246,2]
[356629635,1742853043999,-500.0,0.00014246,2]
[356629636,1742853044009,-2060.93,0.00014246,2]
[356629637,1742853044019,-500.0,0.00014246,2]
[356629638,1742853044030,-746.71,0.00014246,2]
[356629639,1742853044041,-975.68,0.00014246,2]
[356629640,1742853044051,-500.0,0.00014246,2]
[356629641,1742853044061,-500.0,0.00014246,2]
[356629642,1742853044071,-500.0,0.00014246,2]
[356629643,1742853044082,-500.0,0.00014246,2]
[356629644,1742853044091,-500.0,0.00014246,2]
[356629645,1742853044101,-500.0,0.00014246,2]
[356629646,1742853044111,-500.0,0.00014246,2]
[356629647,1742853044120,-500.0,0.00014246,2]
[356629648,1742853044130,-500.0,0.00014246,2]
[356629649,1742853044140,-654.08,0.00014246,2]
[356629650,1742853044149,-500.0,0.00014246,2]
[356629651,1742853044158,-925.23,0.00014246,2]
[356629652,1742853044169,-3695.62,0.00014246,2]
[356629653,1742853044181,-509.9952996,0.00014246,2]
[356629654,1742853044190,-500.0,0.00014246,2]
[356629655,1742853044204,-1768.23,0.00014246,2]
[356629656,1742853044221,-500.0,0.00014246,2]
[356629657,1742853044231,-500.0,0.00014246,2]
[356629658,1742853044241,-500.0,0.00014246,2]
[356629659,1742853044250,-500.0,0.00014246,2]
[356629660,1742853044260,-500.0,0.00014246,2]
[356629661,1742853044269,-500.0,0.00014246,2]
[356629662,1742853044278,-925.34,0.00014246,2]
[356629663,1742853044288,-500.0,0.00014246,2]
[356629664,1742853044298,-2292.64,0.00014246,2]
[356629665,1742853044307,-655.5,0.00014246,2]
[356629666,1742853044317,-500.0,0.00014246,2]
[356629667,1742853044326,-500.0,0.00014246,2]
[356629668,1742853044335,-2011.89,0.00014246,2]
[356629669,1742853044345,-500.0,0.00014246,2]
[356629670,1742853044355,-500.0,0.00014246,2]
[356629671,1742853044364,-500.0,0.00014246,2]
[356629672,1742853044373,-581.67,0.00014246,2]
[356629673,1742853044383,-1588.6,0.00014246,2]
[356629674,1742853044392,-581.15,0.00014246,2]
[356629675,1742853044401,-500.0,0.00014246,2]
[356629676,1742853044410,-1365.37,0.00014246,2]
[356629677,1742853044420,-500.0,0.00014246,2]
[356629678,1742853044429,-1135.07,0.00014246,2]
[356629679,1742853044439,-500.0,0.00014246,2]
[356629680,1742853044448,-500.0,0.00014246,2]
[356629681,1742853044457,-752.27,0.00014246,2]
[356629682,1742853044466,-2528.11,0.00014246,2]
[356629683,1742853044476,-4781.47,0.00014246,2]
[356629684,1742853044485,-500.0,0.00014246,2]
[356629685,1742853044495,-500.0,0.00014246,2]
[356629686,1742853044504,-1636.63,0.00014246,2]
[356629687,1742853044513,-770.91,0.00014246,2]
[356629688,1742853044523,-500.0,0.00014246,2]
[356629689,1742853044532,-1712.49,0.00014246,2]
[356629690,1742853044542,-1265.12,0.00014246,2]
[356629691,1742853044552,-500.0,0.00014246,2]
[356629692,1742853044561,-500.0,0.00014246,2]
[356629693,1742853044570,-502.03,0.00014246,2]
[356629695,1742853044580,-500.0,0.00014246,2]
[356629697,1742853044590,-2591.57,0.00014246,2]
[356629699,1742853044599,-578.55,0.00014246,2]
[356629701,1742853044610,-1928.15,0.00014246,2]
[356629702,1742853044619,-500.0,0.00014246,2]
[356629704,1742853044629,-500.0,0.00014246,2]
[356629706,1742853044639,-536.29,0.00014246,2]
[356629708,1742853044648,-635.94,0.00014246,2]
[356629709,1742853044657,-500.0,0.00014246,2]
[356629711,1742853044667,-500.0,0.00014246,2]
[356629712,1742853044677,-996.35,0.00014246,2]
[356629713,1742853044686,-500.0,0.00014246,2]
[356629714,1742853044695,-3243.41,0.00014246,2]
[356629715,1742853044705,-500.0,0.00014246,2]
[356629716,1742853044715,-500.0,0.00014246,2]
[356629717,1742853044725,-500.0,0.00014246,2]
[356629718,1742853044735,-1135.24,0.00014246,2]
[356629719,1742853044745,-500.0,0.00014246,2]
[356629720,1742853044755,-728.36,0.00014246,2]
[356629721,1742853044765,-500.0,0.00014246,2]
[356629722,1742853044775,-500.0,0.00014246,2]
[356629723,1742853044785,-663.91,0.00014246,2]
[356629724,1742853044795,-5621.77964111,0.00014246,2]
[356629725,1742853045178,-176.03035889,0.00014246,2]
[356629726,1742853045188,-6863.21,0.00014246,2]
[356629727,1742853045198,-815.38,0.00014246,2]
[356629728,1742853045208,-628.68,0.00014246,2]
[356629729,1742853045218,-1225.9,0.00014246,2]
[356629730,1742853045227,-500.0,0.00014246,2]
[356629731,1742853045237,-500.0,0.00014246,2]
[356629732,1742853045246,-500.0,0.00014246,2]
[356629733,1742853045255,-500.0,0.00014246,2]
[356629734,1742853045265,-3264.87,0.00014246,2]
[356629735,1742853045274,-500.0,0.00014246,2]
[356629736,1742853045284,-500.0,0.00014246,2]
[356629737,1742853045293,-360.25882083,0.00014246,2]
[356629738,1742853045602,-4627.81625412,0.000135,2]
[356629739,1742853045612,-1392.98,0.00013698,2]
[356629740,1742853045622,-520.81011578,0.00013698,2]
[356629741,1742853045631,-1392.98,0.00013972,2]
[356629742,1742853045641,-150.0,0.00014028,2]
[356629743,1742853045650,-139.74117917,0.00014246,2]
[356629744,1742853045659,-500.0,0.00014246,2]
[356629745,1742853045669,-500.0,0.00014246,2]
[356629746,1742853045679,-361.78608784,0.00014246,2]
[356629747,1742853045688,-635.02,0.00014246,2]
[356629748,1742853045697,-4282.32255513,0.00014246,2]
[356629753,1742853046190,-913.31517019,0.00014246,2]
[356629754,1742853046346,-270.445,0.00014028,2]
[356629755,1742853046356,-794.13356208,0.00014246,2]
[356629756,1742853046368,-1008.79642974,0.00014246,2]
[356629757,1742853046431,-1975.44129159,0.00014246,2]
[356629758,1742853046442,-993.35,0.00014246,2]
[356629759,1742854194797,-384.0,0.0002,120]
[356629760,1742854194829,-593.45005192,0.00021303,120]
[356629761,1742854194857,-31.34659598,0.00024,120]
[356629762,1742854195089,-968.65340402,0.00024,120]
[356629763,1742854195119,-169.96885631,0.00025,120]
[356629764,1742854195145,-2129.10634906,0.00027397,120]
[356629765,1742854195168,-188.1969058,0.00027397,120]
[356629766,1742854195196,-1000.0,0.00028,120]
[356629767,1742854195221,-178.94711443,0.0003,120]
[356629768,1742854195491,-297.94141,0.0003,120]
[356629769,1742854195932,-531.90812347,0.0003,120]
[356629770,1742854195958,-250.0,0.0003,120]
[356629771,1742854195984,-165.85156318,0.00032,120]
[356629772,1742854196009,-208.0,0.00032,120]
[356629773,1742854196037,-226.65502302,0.00032876,120]
[356629774,1742854196312,-273.34497698,0.00032876,120]
[356629775,1742854196339,-500.0,0.00032876,120]
[356629776,1742854196362,-500.0,0.00032876,120]
[356629777,1742854196387,-500.0,0.00032876,120]
[356629778,1742854196411,-256.16405709,0.00032876,120]
[356629779,1742854196673,-243.83594291,0.00032876,120]
[356629780,1742854196696,-500.0,0.00032876,120]
[356629781,1742854196718,-500.0,0.00032876,120]
[356629782,1742854196742,-500.0,0.00032876,120]
[356629783,1742854196764,-500.0,0.00032876,120]
[356629784,1742854196787,-500.0,0.00032876,120]
[356629785,1742854196809,-500.0,0.00032876,120]
[356629786,1742854196832,-500.0,0.00032876,120]
[356629787,1742854196854,-500.0,0.00032876,120]
[356629788,1742854196876,-500.0,0.00032876,120]
[356629789,1742854196900,-448.94356878,0.00032876,120]
[356629790,1742854197302,-167.94714389,0.00033,120]
[356629791,1742854197328,-418.2974228,0.00033,120]
[356629792,1742854197355,-200.0,0.00034,120]
[356629793,1742854197380,-267.85543331,0.00034849,120]
[356629794,1742854197863,-200.0,0.00034849,120]
[356629860,1742854238580,-300.0,0.00012622,2]
[356629861,1742854238590,-20200.9811253,0.00012623,2]
[356629862,1742854238600,-5000.0,0.00013197,2]
[356629863,1742854238609,-330.40385583,0.00013497,2]
[356629864,1742854238619,-56151.66538756,0.00013498,2]
[356629873,1742854240886,-10627.79417817,0.00013498,2]
[356629914,1742854243770,-732.45936158,0.00013498,2]
[356629916,1742854243780,-2373.86204603,0.00013598,2]
[356630121,1742854246530,-1725.40505436,0.00013598,2]
[356630122,1742854246540,-301.59176081,0.00013698,2]
[356630123,1742854246901,-198.40823919,0.00013698,2]
[356630124,1742854246911,-500.0,0.00013698,2]
[356630125,1742854246921,-270.2539489,0.00013698,2]
[356630126,1742854246931,-500.0,0.00013698,2]
[356630127,1742854246941,-203.87780154,0.00013698,2]
[356630128,1742854246951,-198.67563492,0.00013698,2]
[356630129,1742854246961,-500.0,0.00013698,2]
[356630130,1742854246971,-500.0,0.00013698,2]
[356630131,1742854246981,-500.0,0.00013698,2]
[356630132,1742854246991,-500.0,0.00013698,2]
[356630133,1742854247001,-500.0,0.00013698,2]
[356630134,1742854247011,-500.0,0.00013698,2]
[356630135,1742854247021,-217.14072327,0.00013698,2]
[356630136,1742854247031,-500.0,0.00013698,2]
[356630137,1742854247041,-500.0,0.00013698,2]
[356630138,1742854247051,-500.0,0.00013698,2]
[356630139,1742854247061,-500.0,0.00013698,2]
[356630140,1742854247070,-500.0,0.00013698,2]
[356630141,1742854247080,-500.0,0.00013698,2]
[356630142,1742854247090,-382.50447966,0.00013698,2]
[356630143,1742854247099,-500.0,0.00013698,2]
[356630144,1742854247109,-500.0,0.00013698,2]
[356630145,1742854247118,-500.0,0.00013698,2]
[356630146,1742854247127,-522.96828164,0.00013698,2]
[356630147,1742854247137,-500.0,0.00013698,2]
[356630148,1742854247146,-630.41128513,0.00013698,2]
[356630149,1742854247157,-500.0,0.00013698,2]
[356630150,1742854247354,-500.0,0.00013698,2]
[356630151,1742854247364,-500.0,0.00013698,2]
[356630152,1742854247373,-500.0,0.00013698,2]
[356630153,1742854247383,-512.94228025,0.00013698,2]
[356630154,1742854247392,-628.53,0.00013698,2]
[356630155,1742854247402,-500.0,0.00013698,2]
[356630156,1742854247411,-500.0,0.00013698,2]
[356630158,1742854247421,-511.86825362,0.00013698,2]
[356630160,1742854247430,-500.0,0.00013698,2]
[356630162,1742854247440,-500.0,0.00013698,2]
[356630164,1742854247449,-510.72755863,0.00013698,2]
[356630165,1742854247458,-587.35934117,0.00013698,2]
[356630167,1742854247468,-500.0,0.00013698,2]
[356630169,1742854247477,-500.0,0.00013698,2]
[356630171,1742854247486,-500.0,0.00013698,2]
[356630173,1742854247496,-500.0,0.00013698,2]
[356630174,1742854247505,-500.0,0.00013698,2]
[356630175,1742854247515,-500.0,0.00013698,2]
[356630176,1742854247524,-500.0,0.00013698,2]
[356630177,1742854247534,-500.0,0.00013698,2]
[356630178,1742854247543,-500.0,0.00013698,2]
[356630179,1742854247553,-500.0,0.00013698,2]
[356630180,1742854247562,-513.94158056,0.00013698,2]
[356630181,1742854247572,-309.80380857,0.00013698,2]
[356630182,1742854247585,-190.19619143,0.00013698,2]
[356630183,1742854247595,-500.0,0.00013698,2]
[356630184,1742854247604,-500.0,0.00013698,2]
[356630185,1742854247613,-384.11168676,0.00013698,2]
[356630186,1742854400360,1333.0,0.00034849,120]
[356630187,1742854400828,586.24456669,0.00033,120]
[356630188,1742854401221,2256.16405709,0.00032876,120]
[356630191,1742854829610,1000.0,0.00027,120]
[356630192,1742854829633,188.1969058,0.00027,120]
[356630193,1742854829656,2129.10634906,0.00027,120]
[356630194,1742854869910,853.83989343,0.00012,2]
[356630195,1742854869940,256.16010657,0.00012,2]
[356630278,1742855446774,-782.74051849,0.00012497,2]
[356630279,1742855446784,-300.0,0.00013397,2]
[356630280,1742855446795,-345.70703361,0.00013397,2]
[356630281,1742855446805,-31237.87639438,0.00013398,2]
[356630282,1742855446855,-363.45042438,0.00013398,2]
[356630283,1742855446866,-34777.7903527,0.00013398,2]
[356630284,1742855446876,-3634.781272,0.00013434,2]
[356630285,1742855446886,-1151.80881108,0.00013598,2]
[356630286,1742855446896,-4643.70718206,0.00013598,2]
[356630288,1742855446908,-356.29281794,0.00013598,2]
[356630290,1742855446917,-150.0,0.00013601,2]
[356630292,1742855446927,-500.0,0.00013673,2]
[356630293,1742855446936,-500.0,0.00013673,2]
[356630294,1742855446946,-500.0,0.00013673,2]
[356630295,1742855446959,-600.0,0.0001369,2]
[356630296,1742855446968,-500.0,0.00013698,2]
[356630297,1742855446978,-500.0,0.00013698,2]
[356630298,1742855446988,-500.0,0.00013698,2]
[356630299,1742855446998,-500.0,0.00013698,2]
[356630300,1742855447007,-500.0,0.00013698,2]
[356630301,1742855447017,-511.24211959,0.00013698,2]
[356630302,1742855447027,-500.0,0.00013698,2]
[356630303,1742855447037,-500.0,0.00013698,2]
[356630304,1742855447047,-500.0,0.00013698,2]
[356630305,1742855447056,-500.0,0.00013698,2]
[356630306,1742855447066,-500.0,0.00013698,2]
[356630307,1742855447075,-500.0,0.00013698,2]
[356630308,1742855447085,-500.0,0.00013698,2]
[356630309,1742855447094,-500.0,0.00013698,2]
[356630310,1742855447104,-500.0,0.00013698,2]
[356630311,1742855447114,-500.0,0.00013698,2]
[356630312,1742855447124,-500.0,0.00013698,2]
[356630313,1742855447133,-500.0,0.00013698,2]
[356630314,1742855447144,-500.0,0.00013698,2]
[356630315,1742855447153,-500.0,0.00013698,2]
[356630316,1742855447163,-509.40531111,0.00013698,2]
[356630317,1742855447172,-500.0,0.00013698,2]
[356630318,1742855447181,-500.0,0.00013698,2]
[356630319,1742855447191,-500.0,0.00013698,2]
[356630320,1742855447200,-500.0,0.00013698,2]
[356630321,1742855447210,-500.0,0.00013698,2]
[356630322,1742855447219,-500.0,0.00013698,2]
[356630323,1742855447230,-500.0,0.00013698,2]
[356630324,1742855447240,-550.09,0.00013698,2]
[356630325,1742855447249,-500.0,0.00013698,2]
[356630326,1742855447258,-500.0,0.00013698,2]
[356630327,1742855447268,-500.0,0.00013698,2]
[356630328,1742855447278,-500.0,0.00013698,2]
[356630329,1742855447287,-500.0,0.00013698,2]
[356630330,1742855447297,-500.0,0.00013698,2]
[356630331,1742855447306,-500.0,0.00013698,2]
[356630332,1742855447315,-500.0,0.00013698,2]
[356630333,1742855447325,-500.0,0.00013698,2]
[356630334,1742855447334,-500.0,0.00013698,2]
[356630335,1742855447343,-500.0,0.00013698,2]
[356630336,1742855447353,-500.0,0.00013698,2]
[356630337,1742855447362,-500.0,0.00013698,2]
[356630338,1742855447371,-500.0,0.00013698,2]
[356630339,1742855447380,-448.71986607,0.00013698,2]
[356630340,1742855447389,-1213.67,0.00013698,2]
[356630341,1742855447399,-500.0,0.00013698,2]
[356630342,1742855447409,-500.0,0.00013698,2]
[356630343,1742855447418,-500.0,0.00013698,2]
[356630344,1742855447427,-500.0,0.00013698,2]
[356630345,1742855447436,-514.20434373,0.00013698,2]
[356630346,1742855447445,-254.3571761,0.00013698,2]
[356630347,1742855447455,-500.0,0.00013698,2]
[356630348,1742855447464,-500.0,0.00013698,2]
[356630349,1742855447473,-500.0,0.00013698,2]
[356630350,1742855447482,-512.5429032,0.00013698,2]
[356630351,1742855447491,-254.24373814,0.00013698,2]
[356630352,1742855447500,-500.0,0.00013698,2]
[356630353,1742855447510,-500.0,0.00013698,2]
[356630354,1742855447519,-500.0,0.00013698,2]
[356630355,1742855447529,-500.0,0.00013698,2]
[356630356,1742855447539,-500.0,0.00013698,2]
[356630357,1742855447548,-513.08818256,0.00013698,2]
[356630358,1742855447557,-500.0,0.00013698,2]
[356630359,1742855447567,-988.45,0.00013698,2]
[356630360,1742855447576,-1217.52,0.00013698,2]
[356630361,1742855447586,-500.0,0.00013698,2]
[356630362,1742855447595,-500.0,0.00013698,2]
[356630363,1742855447604,-500.0,0.00013698,2]
[356630364,1742855447614,-500.0,0.00013698,2]
[356630365,1742855447623,-512.46355747,0.00013698,2]
[356630366,1742855447632,-500.0,0.00013698,2]
[356630367,1742855447642,-500.0,0.00013698,2]
[356630368,1742855447651,-500.0,0.00013698,2]
[356630369,1742855447661,-609.58117013,0.00013698,2]
[356630370,1742855447670,-500.0,0.00013698,2]
[356630371,1742855447679,-500.0,0.00013698,2]
[356630372,1742855447689,-500.0,0.00013698,2]
[356630373,1742855447698,-500.0,0.00013698,2]
[356630374,1742855447707,-500.0,0.00013698,2]
[356630375,1742855447717,-500.0,0.00013698,2]
[356630376,1742855447726,-500.0,0.00013698,2]
[356630377,1742855447735,-500.0,0.00013698,2]
[356630378,1742855447745,-500.0,0.00013698,2]
[356630379,1742855447754,-500.0,0.00013698,2]
[356630380,1742855447764,-500.0,0.00013698,2]
[356630381,1742855447773,-500.0,0.00013698,2]
[356630382,1742855447782,-510.38563955,0.00013698,2]
[356630383,1742855447791,-500.0,0.00013698,2]
[356630384,1742855447801,-616.52,0.00013698,2]
[356630385,1742855447810,-500.0,0.00013698,2]
[356630386,1742855447819,-500.0,0.00013698,2]
[356630387,1742855447828,-500.0,0.00013698,2]
[356630388,1742855447837,-500.0,0.00013698,2]
[356630389,1742855447847,-500.0,0.00013698,2]
[356630390,1742855447856,-907.39,0.00013698,2]
[356630391,1742855447866,-500.0,0.00013698,2]
[356630392,1742855447875,-500.0,0.00013698,2]
[356630393,1742855447884,-500.0,0.00013698,2]
[356630394,1742855447894,-500.0,0.00013698,2]
[356630395,1742855447904,-865.62,0.00013698,2]
[356630396,1742855447914,-500.0,0.00013698,2]
[356630397,1742855447923,-500.0,0.00013698,2]
[356630398,1742855447932,-2851.7,0.00013698,2]
[356630399,1742855447942,-500.0,0.00013698,2]
[356630400,1742855447952,-500.0,0.00013698,2]
[356630401,1742855447965,-500.0,0.00013698,2]
[356630402,1742855447975,-500.0,0.00013698,2]
[356630403,1742855447984,-500.0,0.00013698,2]
[356630404,1742855447993,-500.0,0.00013698,2]
[356630405,1742855448004,-500.0,0.00013698,2]
[356630406,1742855448013,-500.0,0.00013698,2]
[356630407,1742855448023,-500.0,0.00013698,2]
[356630408,1742855448033,-500.0,0.00013698,2]
[356630409,1742855448043,-1108.32,0.00013698,2]
[356630410,1742855448053,-500.0,0.00013698,2]
[356630411,1742855448062,-500.0,0.00013698,2]
[356630412,1742855448072,-500.0,0.00013698,2]
[356630413,1742855448081,-500.0,0.00013698,2]
[356630414,1742855448090,-1032.54,0.00013698,2]
[356630415,1742855448100,-500.0,0.00013698,2]
[356630416,1742855448110,-500.0,0.00013698,2]
[356630417,1742855448120,-500.0,0.00013698,2]
[356630418,1742855448129,-500.0,0.00013698,2]
[356630419,1742855448139,-500.0,0.00013698,2]
[356630420,1742855448148,-500.0,0.00013698,2]
[356630421,1742855448157,-500.0,0.00013698,2]
[356630422,1742855448167,-500.0,0.00013698,2]
[356630423,1742855448176,-500.0,0.00013698,2]
[356630424,1742855448186,-500.0,0.00013698,2]
[356630425,1742855448195,-500.0,0.00013698,2]
[356630426,1742855448205,-500.0,0.00013698,2]
[356630427,1742855448215,-530.06978321,0.00013698,2]
[356630428,1742855448224,-500.0,0.00013698,2]
[356630429,1742855448373,-500.0,0.00013698,2]
[356630430,1742855448382,-522.62383474,0.00013698,2]
[356630431,1742855448392,-500.0,0.00013698,2]
[356630432,1742855448402,-506.98563717,0.00013698,2]
[356630433,1742855448411,-500.0,0.00013698,2]
[356630434,1742855448421,-500.0,0.00013698,2]
[356630435,1742855448430,-500.0,0.00013698,2]
[356630436,1742855448440,-500.0,0.00013698,2]
[356630437,1742855448450,-500.0,0.00013698,2]
[356630438,1742855448459,-500.0,0.00013698,2]
[356630439,1742855448468,-500.0,0.00013698,2]
[356630440,1742855448477,-500.0,0.00013698,2]
[356630441,1742855448487,-500.0,0.00013698,2]
[356630442,1742855448497,-570.05364741,0.00013698,2]
[356630443,1742855448506,-500.0,0.00013698,2]
[356630444,1742855448515,-508.36437948,0.00013698,2]
[356630445,1742855448524,-500.0,0.00013698,2]
[356630446,1742855448533,-511.29561843,0.00013698,2]
[356630447,1742855448543,-500.0,0.00013698,2]
[356630448,1742855448552,-500.0,0.00013698,2]
[356630449,1742855448562,-500.0,0.00013698,2]
[356630450,1742855448571,-500.0,0.00013698,2]
[356630451,1742855448581,-500.0,0.00013698,2]
[356630452,1742855448590,-525.04779041,0.00013698,2]
[356630453,1742855448599,-503.25364237,0.00013698,2]
[356630454,1742855448608,-500.0,0.00013698,2]
[356630455,1742855448618,-500.0,0.00013698,2]
[356630456,1742855448627,-809.57,0.00013698,2]
[356630457,1742855448637,-511.00816755,0.00013698,2]
[356630458,1742855448646,-502.64291709,0.00013698,2]
[356630459,1742855448655,-500.0,0.00013698,2]
[356630460,1742855448664,-809.67,0.00013698,2]
[356630461,1742855448674,-500.0,0.00013698,2]
[356630462,1742855448683,-500.0,0.00013698,2]
[356630463,1742855448692,-500.0,0.00013698,2]
[356630464,1742855448701,-508.5,0.00013698,2]
[356630465,1742855448710,-653.37,0.00013698,2]
[356630466,1742855448720,-529.64940821,0.00013698,2]
[356630467,1742855448729,-500.0,0.00013698,2]
[356630468,1742855448739,-658.24,0.00013698,2]
[356630469,1742855448749,-674.55,0.00013698,2]
[356630470,1742855448759,-2006.06,0.00013698,2]